bitfinex-derivatives/quotes_SOLF0:USTF0_20241208
["timestamp","ask_amount","ask_price","bid_price","bid_amount"]
[1733631768969,2.0812,240.06,240.03,6.34082988]
[1733631771160,2.0812,240.06,240.04,1.04155114]
[1733631771366,1.2569,240.23,240.05,7.38231566]
[1733631771570,6.34082988,240.14,240.07,6.34082988]
[1733631771763,6.34082988,240.14,240.08,1.04148578]
[1733631771964,6.34082988,240.14,240.07,6.34082988]
[1733631772269,6.34082988,240.14,240.08,1.04134381]
[1733631772466,6.34082988,240.14,240.09,1.04134381]
[1733631772670,2.0807,240.13,240.1,1.04134381]
[1733631772865,2.0807,240.13,240.09,2.0809]
[1733631773269,2.0807,240.13,240.1,1.0413099]
[1733631773472,2.0807,240.13,240.09,2.0809]
[1733631773673,2.0807,240.13,240.1,1.04130486]
[1733631773868,2.0807,240.13,240.09,2.0809]
[1733631774076,2.0807,240.13,240.1,1.04130474]
[1733631774369,2.0807,240.13,240.09,2.0809]
[1733631775072,2.0807,240.13,240.1,1.04133462]
[1733631775277,2.0807,240.13,240.09,2.0809]
[1733631775573,2.0807,240.13,240.1,1.04133114]
[1733631775777,2.0807,240.13,240.09,2.0809]
[1733631775969,2.0807,240.13,240.1,1.04131583]
[1733631776167,2.0807,240.13,240.09,2.0809]
[1733631776373,2.0807,240.13,240.1,1.04132438]
[1733631776573,2.0807,240.13,240.09,2.0809]
[1733631776874,2.0807,240.13,240.1,1.04133384]
[1733631777175,2.0807,240.13,240.09,2.0809]
[1733631778069,1.2569,240.23,240.07,6.34082988]
[1733631778373,6.34082988,240.17,240.09,6.34082988]
[1733631778567,6.34082988,240.17,240.1,1.04133935]
[1733631778768,2.0803,240.16,240.12,2.0807]
[1733631779271,2.0803,240.16,240.09,6.34082988]
[1733631779474,2.0803,240.16,240.13,2.0806]
[1733631780072,6.34082988,240.17,240.13,2.0806]
[1733631780376,6.34082988,240.21,240.14,7.38194519]
[1733631780575,6.34082988,240.21,240.15,1.04111531]
[1733631780777,6.34082988,240.21,240.14,6.34082988]
[1733631781072,6.34082988,240.21,240.15,1.04107472]
[1733631781369,6.34082988,240.19,240.12,1.88]
[1733631781575,6.34082988,240.19,240.13,1.0410901]
[1733631781770,6.34082988,240.19,240.12,8.22082988]
[1733631781771,6.34082988,240.21,240.14,7.38191998]
[1733631781969,6.34082988,240.21,240.12,1.88]
[1733631781970,6.34082988,240.21,240.15,1.04108594]
[1733631782169,6.34082988,240.19,240.16,1.04108594]
[1733631782376,6.34082988,240.19,240.16,2.0803]
[1733631783376,2.0801,240.2,240.16,2.0803]
[1733631784077,8.42092988,240.19,240.12,8.22082988]
[1733631784277,8.42092988,240.19,240.15,2.0804]
[1733631785174,1.88,240.23,240.14,6.34082988]
[1733631785370,2.08,240.21,240.17,2.0802]
[1733631785972,8.42052988,240.24,240.12,1.88]
[1733631786178,6.34082988,240.24,240.17,6.34082988]
[1733631786874,1.88,240.27,240.17,6.34082988]
[1733631787078,2.0796,240.25,240.17,6.34082988]
[1733631787277,6.34082988,240.25,240.17,6.34082988]
[1733631787771,6.34082988,240.23,240.15,6.34082988]
[1733631788181,2.0796,240.24,240.17,6.34082988]
[1733631789579,2.0796,240.24,240.2,2.08]
[1733631789776,2.0794,240.27,240.19,6.34082988]
[1733631789978,1.88,240.31,240.23,6.34082988]
[1733631790277,8.22082988,240.31,240.23,6.34082988]
[1733631790478,1.88,240.31,240.25,6.34082988]
[1733631790683,1.88,240.37,240.27,6.34082988]
[1733631790879,6.34082988,240.35,240.27,6.34082988]
[1733631791579,2.0787,240.35,240.3,2.0791]
[1733631791777,8.41952988,240.35,240.3,2.0791]
[1733631792174,1.88,240.38,240.27,6.34082988]
[1733631792374,6.34082988,240.35,240.29,6.34082988]
[1733631792778,2.0786,240.37,240.32,2.0789]
[1733631792779,8.41942988,240.37,240.32,2.0789]
[1733631794584,8.26082988,240.39,240.31,6.34082988]
[1733631794976,1.92,240.39,240.34,2.0787]
[1733631795377,1.92,240.43,240.35,6.34082988]
[1733631795579,1.92,240.43,240.2,10.35596031]
[1733631795580,6.34082988,240.46,240.39,6.34082988]
[1733631795785,8.26082988,240.46,240.39,6.34082988]
[1733631796082,6.34082988,240.46,240.39,6.34082988]
[1733631796278,6.34082988,240.46,240.39,8.41912988]
[1733631796479,6.34082988,240.42,240.35,8.26082988]
[1733631797077,8.41892988,240.42,240.36,2.0786]
[1733631797283,6.34082988,240.42,240.35,8.26082988]
[1733631797484,6.34082988,240.42,240.35,1.92]
[1733631798178,4.0293,240.46,240.36,6.34082988]
[1733631798382,6.34082988,240.44,240.36,6.34082988]
[1733631798689,6.34082988,240.42,240.36,6.34082988]
[1733631800288,2.0783,240.4,240.36,6.34082988]
[1733631801988,6.34082988,240.42,240.34,6.34082988]
[1733631802183,2.0783,240.39,240.34,6.34082988]
[1733631802381,6.34082988,240.42,240.34,6.34082988]
[1733631802382,1.92,240.42,240.34,6.34082988]
[1733631802584,2.0783,240.4,240.34,8.41962988]
[1733631802785,1.92,240.42,240.36,6.34082988]
[1733631802989,4.0293,240.46,240.38,6.34082988]
[1733631802990,6.34082988,240.45,240.38,6.34082988]
[1733631803182,4.0293,240.46,240.4,6.34082988]
[1733631803885,2.0778,240.46,240.4,6.34082988]
[1733631804086,2.0778,240.46,240.42,6.34082988]
[1733631805294,2.0778,240.46,240.41,2.0782]
[1733631807497,6.34082988,240.47,240.41,2.0782]
[1733631807692,2.0778,240.45,240.4,6.34082988]
[1733631807895,6.34082988,240.43,240.36,1.92]
[1733631808898,6.34082988,240.43,240.34,6.34082988]
[1733631809092,6.34082988,240.43,240.34,8.41962988]
[1733631809700,2.0784,240.39,240.34,8.41962988]
[1733631810100,2.0786,240.37,240.32,2.0789]
[1733631810397,6.34082988,240.39,240.32,6.34082988]
[1733631811000,8.26082988,240.39,240.32,6.34082988]
[1733631812092,2.0787,240.36,240.32,6.34082988]
[1733631812404,6.34082988,240.37,240.28,2.0792]
[1733631812598,6.34082988,240.35,240.28,6.34082988]
[1733631812995,2.0789,240.33,240.28,6.34082988]
[1733631813300,2.0789,240.33,240.3,6.34082988]
[1733631814292,1.92,240.39,240.32,6.34082988]
[1733631814493,1.92,240.4,240.34,6.34082988]
[1733631814892,2.0786,240.36,240.34,6.34082988]
[1733631815202,6.34082988,240.39,240.32,6.34082988]
[1733631815396,2.0789,240.33,240.3,6.34082988]
[1733631815995,2.079,240.31,240.26,2.0794]
[1733631816194,6.34082988,240.33,240.23,1.92]
[1733631816503,6.34082988,240.33,240.26,6.34082988]
[1733631816804,2.079,240.31,240.26,6.34082988]
[1733631817107,2.079,240.31,240.28,6.34082988]
[1733631817502,2.079,240.31,240.23,1.92]
[1733631817703,2.0791,240.3,240.27,6.34082988]
[1733631818103,6.34082988,240.34,240.27,6.34082988]
[1733631818495,1.92,240.35,240.25,2.0796]
[1733631818904,1.92,240.35,240.2,1.92]
[1733631818905,9.97714363,240.34,240.2,1.92]
[1733631819205,9.97714363,240.34,240.22,2.0798]
[1733631819206,11.33884363,240.34,240.22,2.0798]
[1733631819407,1.352,240.33,240.19,11.89714363]
[1733631819607,2.0795,240.26,240.19,11.89714363]
[1733631820604,2.0795,240.26,240.21,2.0798]
[1733631820805,1.92,240.3,240.21,2.0798]
[1733631821007,1.92,240.3,240.22,9.97714363]
[1733631821203,1.3434,240.32,240.26,2.0795]
[1733631821507,2.0789,240.33,240.25,9.97714363]
[1733631821709,2.0789,240.33,240.25,11.89714363]
[1733631822708,2.0789,240.33,240.28,2.0793]
[1733631823105,2.0789,240.32,240.28,2.0793]
[1733631823509,1.3617,240.34,240.29,2.0792]
[1733631823708,1.92,240.36,240.25,11.89714363]
[1733631824801,2.0789,240.33,240.25,11.89714363]
[1733631825508,2.0789,240.33,240.29,2.0792]
[1733631826901,1.92,240.36,240.25,11.89714363]
[1733631827108,2.079,240.32,240.25,11.89714363]
[1733631827507,1.92,240.36,240.25,11.89714363]
[1733631827811,9.97714363,240.35,240.22,9.97714363]
[1733631828113,2.0793,240.28,240.23,2.0797]
[1733631828709,3.9464,240.34,240.23,2.0797]
[1733631829103,9.97714363,240.32,240.22,2.0798]
[1733631829302,1.96,240.31,240.17,76.83052348]
[1733631829502,2.0796,240.25,240.18,6.58102492]
[1733631829704,2.0796,240.25,240.19,1.04073718]
[1733631830014,2.0795,240.26,240.22,2.0798]
[1733631830403,1.96,240.31,240.19,9.97714363]
[1733631830609,2.0794,240.28,240.23,2.0797]
[1733631830810,2.0794,240.28,240.22,1.96]
[1733631831006,1.96,240.31,240.23,2.0797]
[1733631831202,2.0794,240.27,240.23,2.0797]
[1733631831508,1.96,240.31,240.22,1.96]
[1733631831704,2.0794,240.28,240.24,2.0796]
[1733631831909,1.96,240.31,240.2,1.96]
[1733631832612,2.0795,240.26,240.21,2.0798]
[1733631833907,2.0795,240.26,240.22,2.0798]
[1733631839612,1.96,240.31,240.17,86.80766711]
[1733631839809,9.97714363,240.29,240.17,78.79052348]
[1733631840309,2.0797,240.24,240.19,2.08]
[1733631841114,2.0798,240.22,240.17,78.79052348]
[1733631842609,11.93714363,240.26,240.17,76.83052348]
[1733631842814,11.93714363,240.26,240.12,11.93714363]
[1733631843015,2.6386,240.25,240.13,1.04079889]
[1733631843319,2.6386,240.25,240.1,1.96]
[1733631843320,9.97714363,240.23,240.1,1.96]
[1733631843512,9.97714363,240.23,240.11,6.58270535]
[1733631843712,2.0802,240.19,240.14,2.0805]
[1733631843914,9.97714363,240.23,240.09,9.97714363]
[1733631844120,2.0803,240.17,240.11,2.0808]
[1733631844315,2.0803,240.17,240.12,1.0408216]
[1733631844619,2.0803,240.17,240.13,1.04082396]
[1733631844813,1.96,240.22,240.09,9.97714363]
[1733631845024,2.0801,240.2,240.12,9.97714363]
[1733631845719,2.0801,240.2,240.16,2.0803]
[1733631846621,2.0801,240.19,240.14,2.0804]
[1733631846826,1.96,240.22,240.14,2.0804]
[1733631847029,1.96,240.22,240.12,9.97714363]
[1733631847227,1.96,240.22,240.08,1.96]
[1733631847427,1.96,240.22,240.1,9.97714363]
[1733631847627,1.96,240.22,240.11,1.04082453]
[1733631847829,1.96,240.22,240.13,2.0805]
[1733631847830,2.0802,240.18,240.13,2.0805]
[1733631850027,1.3842,240.24,240.1,9.97714363]
[1733631850229,3.3442,240.24,240.13,9.97714363]
[1733631850431,1.96,240.24,240.14,1.96]
[1733631850933,2.0799,240.22,240.18,2.0801]
[1733631851224,1.96,240.24,240.14,1.96]
[1733631851627,2.0798,240.23,240.14,1.96]
[1733631851823,9.97714363,240.32,240.16,9.97714363]
[1733631852033,3.2137,240.31,240.16,9.97714363]
[1733631852936,3.2137,240.31,240.2,2.08]
[1733631854735,2.0796,240.25,240.2,2.08]
[1733631855122,2.0796,240.25,240.16,9.97714363]
[1733631855429,2.0796,240.25,240.21,2.0799]
[1733631857231,6.38863291,240.27,240.2,2.08]
[1733631857535,2.0797,240.24,240.2,2.08]
[1733631862739,2.0802,240.18,240.1,1.23499372]
[1733631863039,2.0802,240.18,240.14,6.38863291]
[1733631863234,2.0802,240.18,240.15,6.59690586]
[1733631863430,2.0802,240.18,240.16,1.0408586]
[1733631863635,1.94,240.23,240.17,1.0408586]
[1733631863937,1.94,240.23,240.18,1.04085042]
[1733631864136,1.94,240.23,240.16,8.46893291]
[1733631864434,2.0799,240.21,240.17,3.12105032]
[1733631864634,2.0799,240.21,240.18,7.42948323]
[1733631864836,1.94,240.23,240.16,6.38863291]
[1733631865035,2.0801,240.19,240.17,1.04086219]
[1733631865230,2.0801,240.19,240.16,6.38863291]
[1733631865428,2.08,240.2,240.18,6.38863291]
[1733631865634,1.94,240.23,240.18,6.38863291]
[1733631865835,1.2537,240.31,240.18,6.38863291]
[1733631865836,6.38863291,240.26,240.18,6.38863291]
[1733631866037,2.0797,240.24,240.19,2.08]
[1733631868636,2.0798,240.23,240.19,2.08]
[1733631868839,6.38863291,240.24,240.18,6.38863291]
[1733631869037,6.38863291,240.24,240.16,8.46893291]
[1733631869234,2.08,240.21,240.17,1.04085953]
[1733631869436,2.08,240.21,240.18,1.04085953]
[1733631869630,2.08,240.21,240.17,2.0802]
[1733631870339,2.08,240.21,240.18,1.04086132]
[1733631870538,2.08,240.21,240.17,2.0802]
[1733631870734,2.08,240.21,240.18,1.04086132]
[1733631870936,2.08,240.21,240.17,2.0802]
[1733631871133,2.0798,240.23,240.2,6.38863291]
[1733631871338,1.94,240.27,240.2,6.38863291]
[1733631871539,6.38863291,240.28,240.2,6.38863291]
[1733631871738,6.38863291,240.28,240.2,8.46863291]
[1733631873438,8.32863291,240.36,240.27,6.38863291]
[1733631873837,2.0793,240.28,240.25,6.38863291]
[1733631874042,6.38863291,240.32,240.25,6.38863291]
[1733631874234,1.94,240.31,240.25,6.38863291]
[1733631874642,2.0793,240.28,240.2,1.94]
[1733631874940,2.0793,240.28,240.24,6.38863291]
[1733631875742,2.0797,240.24,240.21,6.38863291]
[1733631878137,2.0797,240.23,240.19,8.46863291]
[1733631878446,8.32863291,240.26,240.2,1.04082183]
[1733631878635,8.32863291,240.26,240.17,8.46883291]
[1733631878838,8.32863291,240.26,240.18,1.04083594]
[1733631879041,8.32863291,240.26,240.19,7.42946885]
[1733631879239,8.32863291,240.26,240.19,6.38863291]
[1733631879647,2.0798,240.22,240.19,6.38863291]
[1733631885851,2.0798,240.22,240.18,2.0802]
[1733631886049,2.0798,240.22,240.17,8.46883291]
[1733631886845,2.0798,240.22,240.19,6.38863291]
[1733631887643,2.0798,240.22,240.18,2.0802]
[1733631887844,2.0798,240.22,240.19,6.38863291]
[1733631888049,1.94,240.26,240.21,6.38863291]
[1733631888249,1.2511,240.3,240.23,6.38863291]
[1733631888447,3.1511,240.3,240.23,6.38863291]
[1733631889155,2.0793,240.28,240.23,6.38863291]
[1733631889354,2.0793,240.28,240.25,6.38863291]
[1733631889753,1.9,240.3,240.25,6.38863291]
[1733631890250,1.9,240.3,240.2,1.9]
[1733631890251,9.54063291,240.34,240.27,6.38863291]
[1733631890645,7.64063291,240.34,240.27,6.38863291]
[1733631890842,9.54063291,240.34,240.27,6.38863291]
[1733631891153,2.0791,240.31,240.27,6.38863291]
[1733631891550,9.54063291,240.34,240.27,6.38863291]
[1733631892050,2.0792,240.3,240.25,8.46823291]
[1733631892253,6.38863291,240.32,240.21,2.0799]
[1733631892547,6.38863291,240.32,240.23,6.38863291]
[1733631893250,2.0795,240.27,240.23,6.38863291]
[1733631894454,6.38863291,240.32,240.2,1.9]
[1733631894657,2.0795,240.26,240.2,3.9799]
[1733631894855,2.0795,240.26,240.24,6.38863291]
[1733631899262,2.0796,240.25,240.24,6.38863291]
[1733631900554,2.0797,240.23,240.18,2.0801]
[1733631900750,6.38863291,240.26,240.17,1.9]
[1733631900949,6.38863291,240.24,240.18,1.04087507]
[1733631901260,2.08,240.21,240.17,6.38863291]
[1733631902557,2.08,240.21,240.17,8.46883291]
[1733631903056,2.0801,240.2,240.12,1.9]
[1733631903259,2.0801,240.2,240.17,6.38863291]
[1733631903460,1.2568,240.27,240.17,6.38863291]
[1733631903649,2.0796,240.25,240.21,6.38863291]
[1733631903850,1.252,240.34,240.23,6.38863291]
[1733631904049,1.252,240.34,240.18,1.9]
[1733631904050,6.38863291,240.33,240.25,6.38863291]
[1733631904359,2.0794,240.27,240.25,6.38863291]
[1733631904750,2.0794,240.27,240.23,6.38863291]
[1733631905347,2.0794,240.27,240.23,8.46833291]
[1733631907455,2.0794,240.27,240.23,2.0797]
[1733631907658,2.0795,240.26,240.22,2.0798]
[1733631910154,8.28863291,240.31,240.23,8.46833291]
[1733631910361,1.9,240.31,240.23,8.46833291]
[1733631910753,2.0794,240.27,240.23,8.46833291]
[1733631911859,2.0794,240.27,240.23,2.0797]
[1733631912659,6.38863291,240.26,240.18,1.9]
[1733631912853,6.38863291,240.26,240.19,2.08]
[1733631914656,2.0797,240.23,240.19,2.08]
[1733631919565,2.5088,240.34,240.22,6.38863291]
[1733631919861,2.5088,240.34,240.25,6.38863291]
[1733631919862,6.38863291,240.32,240.25,6.38863291]
[1733631920368,2.0793,240.28,240.25,6.38863291]
[1733631920563,6.38863291,240.32,240.25,6.38863291]
[1733631921363,2.0791,240.3,240.25,8.46813291]
[1733631921569,4.3688,240.34,240.27,6.38863291]
[1733631922269,2.079,240.32,240.27,8.46803291]
[1733631923461,4.1549,240.5,240.31,6.38863291]
[1733631923663,2.6235,240.48,240.31,6.38863291]
[1733631923861,6.38863291,240.39,240.31,6.38863291]
[1733631924059,2.0787,240.35,240.31,6.38863291]
[1733631924462,6.38863291,240.37,240.28,1.86]
[1733631924667,6.38863291,240.33,240.26,6.38863291]
[1733631925166,6.38863291,240.31,240.25,1.86]
[1733631926166,2.0794,240.28,240.25,1.86]
[1733631926367,6.38863291,240.31,240.25,1.86]
[1733631926667,6.38863291,240.31,240.24,6.38863291]
[1733631926864,6.38863291,240.31,240.22,8.24863291]
[1733631927560,2.0795,240.26,240.18,2.6303]
[1733631927766,6.38863291,240.27,240.19,1.86]
[1733631927966,6.38863291,240.27,240.19,6.38863291]
[1733631928471,2.0797,240.24,240.19,6.38863291]
[1733631929168,6.38863291,240.27,240.18,8.24863291]
[1733631929768,2.0798,240.22,240.18,1.86]
[1733631929969,2.0798,240.22,240.19,6.38863291]
[1733631930162,6.38863291,240.23,240.11,1.3003]
[1733631930368,6.38863291,240.23,240.17,6.38863291]
[1733631930369,2.0802,240.19,240.17,6.38863291]
[1733631931267,6.38863291,240.23,240.15,2.0804]
[1733631931469,6.38863291,240.23,240.17,6.38863291]
[1733631933570,6.38863291,240.23,240.13,2.0806]
[1733631933571,2.0802,240.18,240.13,2.0806]
[1733631933769,2.0802,240.18,240.15,6.38863291]
[1733631934570,2.0804,240.16,240.11,3.9407]
[1733631934769,2.0804,240.16,240.14,6.38863291]
[1733631935868,2.0805,240.15,240.08,3.9409]
[1733631936169,8.24863291,240.19,240.11,6.38863291]
[1733631936366,2.0806,240.13,240.1,6.38863291]
[1733631939067,4.5997,240.19,240.1,6.38863291]
[1733631939371,2.0805,240.14,240.1,6.38863291]
[1733631940170,1.86,240.19,240.12,6.38863291]
[1733631940474,8.24863291,240.24,240.16,6.38863291]
[1733631940675,1.86,240.23,240.16,6.38863291]
[1733631941170,2.0799,240.21,240.16,6.38863291]
[1733631941372,1.86,240.23,240.16,6.38863291]
[1733631941570,1.86,240.23,240.15,2.0804]
[1733631941777,2.0799,240.21,240.16,6.38863291]
[1733631942571,6.38863291,240.22,240.15,2.0804]
[1733631942773,6.38863291,240.22,240.14,6.38863291]
[1733631942971,6.38863291,240.22,240.13,2.0806]
[1733631942972,6.38863291,240.2,240.1,1.86]
[1733631943171,2.0803,240.17,240.12,6.38863291]
[1733631944269,2.0803,240.17,240.1,1.86]
[1733631944468,2.0803,240.17,240.13,6.38863291]
[1733631944670,6.38863291,240.2,240.13,6.38863291]
[1733631944671,1.86,240.23,240.13,6.38863291]
[1733631944877,2.0801,240.19,240.13,6.38863291]
[1733631945477,2.0801,240.19,240.1,1.86]
[1733631945478,3.9399,240.22,240.17,6.38863291]
[1733631945670,1.86,240.22,240.17,6.38863291]
[1733631946275,1.86,240.22,240.17,8.46883291]
[1733631947577,3.9398,240.22,240.17,8.46883291]
[1733631947975,3.9398,240.22,240.17,6.38863291]
[1733631947976,1.86,240.22,240.17,6.38863291]
[1733631948178,2.08,240.2,240.15,6.38863291]
[1733631948374,6.38863291,240.21,240.13,6.38863291]
[1733631948578,6.38863291,240.21,240.13,8.46923291]
[1733631949379,2.0802,240.19,240.13,8.46923291]
[1733631950187,2.0802,240.19,240.14,2.0805]
[1733631953584,2.0803,240.17,240.13,2.0806]
[1733631953787,2.0803,240.17,240.14,6.38863291]
[1733631954580,2.0803,240.17,240.13,2.0806]
[1733631954776,2.0803,240.17,240.13,8.46923291]
[1733631955188,2.0801,240.19,240.15,6.38863291]
[1733631957798,2.0802,240.18,240.15,6.38863291]
[1733631965295,2.0803,240.17,240.15,6.38863291]
[1733631967808,2.0804,240.16,240.12,2.0806]
[1733631968002,2.0804,240.16,240.13,6.38863291]
[1733631969205,6.38863291,240.2,240.13,6.38863291]
[1733631969404,6.38863291,240.2,240.11,6.38863291]
[1733631969609,1.86,240.21,240.11,6.38863291]
[1733631969610,6.38863291,240.18,240.11,6.38863291]
[1733631970108,2.0806,240.14,240.11,6.38863291]
[1733631970602,6.38863291,240.18,240.11,6.38863291]
[1733631970808,2.0806,240.14,240.11,6.38863291]
[1733631971011,2.0806,240.14,240.11,8.46933291]
[1733631971609,2.0806,240.14,240.13,6.38863291]
[1733631973209,1.86,240.21,240.13,6.38863291]
[1733631973410,1.86,240.21,240.15,6.38863291]
[1733631974513,1.86,240.21,240.15,8.46903291]
[1733631975106,2.0802,240.18,240.15,8.46903291]
[1733631975413,1.86,240.21,240.15,6.38863291]
[1733631977412,2.0802,240.18,240.13,2.0805]
[1733631977610,1.86,240.21,240.14,7.42972572]
[1733631977818,1.86,240.21,240.14,6.38863291]
[1733631978116,1.86,240.21,240.12,3.9007]
[1733631978117,1.86,240.21,240.12,2.0807]
[1733631978311,1.86,240.21,240.13,6.38863291]
[1733631978904,1.86,240.21,240.15,6.38863291]
[1733631979117,2.0803,240.17,240.15,6.38863291]
[1733631979320,1.82,240.21,240.15,8.46903291]
[1733631979708,2.0802,240.18,240.15,6.38863291]
[1733631980407,1.261,240.28,240.17,6.38863291]
[1733631980611,2.0799,240.22,240.19,6.38863291]
[1733631982018,8.20863291,240.25,240.17,6.38863291]
[1733631982518,2.0801,240.19,240.17,6.38863291]
[1733631983217,2.0802,240.18,240.17,6.38863291]
[1733631984306,6.38863291,240.23,240.15,8.20863291]
[1733631984307,2.0803,240.17,240.15,8.20863291]
[1733631984516,2.0803,240.17,240.15,6.38863291]
[1733631986118,1.82,240.19,240.08,3.05796514]
[1733631986315,1.82,240.19,240.09,6.60319913]
[1733631986517,1.82,240.19,240.12,6.38863291]
[1733631989415,2.0806,240.14,240.12,6.38863291]
[1733631990919,2.0806,240.14,240.09,2.0809]
[1733631991219,2.0806,240.14,240.12,6.38863291]
[1733631992321,1.82,240.22,240.13,1.04114905]
[1733631992621,6.38863291,240.19,240.06,1.23809794]
[1733631992821,6.38863291,240.12,240.07,6.60304027]
[1733631993026,1.82,240.11,240.03,6.38863291]
[1733631993223,1.82,240.11,240.04,6.60436289]
[1733631993422,2.081,240.08,240.05,1.04135001]
[1733631993627,1.82,240.11,240.06,1.04135001]
[1733631993828,1.82,240.11,240.03,6.38863291]
[1733631994130,1.82,240.11,240.04,1.04139262]
[1733631994326,1.82,240.11,240.05,1.04139262]
[1733631994520,1.82,240.11,240.03,6.38863291]
[1733631994723,1.82,240.11,240.04,1.04145188]
[1733631995029,6.38863291,240.1,240.03,6.38863291]
[1733631995421,2.0813,240.06,240.04,1.04145252]
[1733631995619,2.0813,240.06,240.03,6.38863291]
[1733631998228,6.38863291,240.1,240.01,2.0816]
[1733631998423,6.38863291,240.1,240.04,6.38863291]
[1733631999123,2.0812,240.07,240.03,6.38863291]
[1733631999325,6.38863291,240.1,240.03,6.38863291]
[1733632000629,2.0814,240.05,240.03,6.38863291]
[1733632001423,2.081,240.09,240.03,6.38863291]
[1733632001628,3.921,240.09,240.06,6.38863291]
[1733632002427,3.921,240.09,240.04,2.0813]
[1733632002925,2.081,240.08,240.04,2.0813]
[1733632003126,2.081,240.08,240.05,6.38863291]
[1733632003827,6.38863291,240.12,240.05,6.38863291]
[1733632004035,3.9409,240.11,240.07,6.38863291]
[1733632004230,2.0809,240.11,240.07,6.38863291]
[1733632004425,2.0809,240.1,240.07,6.38863291]
[1733632005731,1.86,240.12,240.07,6.38863291]
[1733632005923,3.9408,240.12,240.07,6.38863291]
[1733632006532,2.0808,240.11,240.07,8.46973291]
[1733632007225,2.0808,240.11,240.07,6.38863291]
[1733632009837,2.0803,240.16,240.11,2.0807]
[1733632010036,2.0803,240.16,240.15,6.38863291]
[1733632011735,1.86,240.24,240.15,6.38863291]
[1733632011935,2.08,240.21,240.2,6.38863291]
[1733632012338,1.86,240.24,240.2,6.38863291]
[1733632013640,2.0798,240.22,240.2,6.38863291]
[1733632014237,8.24863291,240.26,240.2,6.38863291]
[1733632014539,2.0799,240.21,240.2,6.38863291]
[1733632014934,2.0799,240.21,240.18,6.38863291]
[1733632015736,2.0802,240.18,240.07,5.68855378]
[1733632015938,2.0802,240.18,240.14,6.38863291]
[1733632017344,2.0802,240.18,240.13,2.0806]
[1733632017544,6.38863291,240.2,240.14,6.38863291]
[1733632017844,6.38863291,240.2,240.12,6.38863291]
[1733632018246,6.38863291,240.15,240.05,2.7081]
[1733632018439,6.38863291,240.15,240.01,1.86]
[1733632018440,8.24863291,240.15,240.01,1.86]
[1733632018745,1.86,240.15,240.09,6.38863291]
[1733632019245,2.0808,240.12,240.09,6.38863291]
[1733632019838,3.9405,240.15,240.11,6.38863291]
[1733632020035,1.86,240.15,240.11,6.38863291]
[1733632020342,1.86,240.15,240.02,3.88627129]
[1733632020643,1.86,240.15,240.1,6.38863291]
[1733632022640,8.24863291,240.15,240.08,6.38863291]
[1733632023944,2.0809,240.1,240.08,6.38863291]
[1733632025142,1.86,240.15,240.08,6.38863291]
[1733632025345,1.86,240.15,240.02,1.86]
[1733632025346,1.86,240.15,240.1,6.38863291]
[1733632025641,2.6633,240.19,240.12,6.38863291]
[1733632025642,2.0806,240.14,240.12,6.38863291]
[1733632025846,1.86,240.16,240.12,6.38863291]
[1733632026450,2.0804,240.15,240.12,6.38863291]
[1733632026841,43.32,240.3,240.14,6.38863291]
[1733632027044,5.6641,240.29,240.14,6.38863291]
[1733632027348,6.38863291,240.23,240.14,6.38863291]
[1733632027551,1.86,240.22,240.14,6.38863291]
[1733632027745,2.0803,240.17,240.14,6.38863291]
[1733632028050,2.0803,240.17,240.16,6.38863291]
[1733632030450,6.38863291,240.24,240.16,6.38863291]
[1733632030646,1.86,240.23,240.18,6.38863291]
[1733632033443,2.0799,240.22,240.18,6.38863291]
[1733632033648,1.86,240.23,240.18,6.38863291]
[1733632033843,1.86,240.24,240.18,6.38863291]
[1733632034445,1.86,240.24,240.16,6.38863291]
[1733632034956,6.38863291,240.23,240.16,6.38863291]
[1733632035755,6.38863291,240.21,240.14,6.38863291]
[1733632036157,2.0803,240.17,240.09,2.5779]
[1733632036451,2.0803,240.17,240.13,6.38863291]
[1733632036655,1.86,240.19,240.13,6.38863291]
[1733632037651,2.0804,240.16,240.13,6.38863291]
[1733632039156,2.0804,240.16,240.15,6.38863291]